[Event "*** SCC Grand Prix: Titled Tuesday Blitz"]
[Site "Chess.com"]
[Date "2020.06.02"]
[Round "6"]
[White "H16"]
[Black "shineatchess"]
[Result "1-0"]
[WhiteElo "2515"]
[BlackElo "2292"]
[TimeControl "180+1"]
[EndTime "11:09:34 PDT"]
[Termination "H16 won by checkmate"]

1. d4 {[%clk 0:02:59.4]} 1... Nf6 {[%clk 0:02:58.4]} 2. c4 {[%clk 0:02:59.8]}
2... e6 {[%clk 0:02:58.1]} 3. Nf3 {[%clk 0:02:59.2]} 3... d5 {[%clk 0:02:57.9]}
4. Nc3 {[%clk 0:02:59.2]} 4... Be7 {[%clk 0:02:57.9]} 5. Bf4 {[%clk 0:02:59.5]}
5... O-O {[%clk 0:02:57.8]} 6. e3 {[%clk 0:02:59.7]} 6... b6 {[%clk 0:02:58.1]}
7. cxd5 {[%clk 0:02:58.4]} 7... Nxd5 {[%clk 0:02:58.3]} 8. Nxd5 {[%clk
0:02:58.7]} 8... Qxd5 {[%clk 0:02:58.5]} 9. Bd3 {[%clk 0:02:58.8]} 9... Bb4+
{[%clk 0:02:51.1]} 10. Ke2 {[%clk 0:02:41.5]} 10... c5 {[%clk 0:02:12.9]} 11. a3
{[%clk 0:02:26.3]} 11... Ba5 {[%clk 0:02:12.1]} 12. b4 {[%clk 0:02:10.8]} 12...
cxb4 {[%clk 0:02:10]} 13. axb4 {[%clk 0:02:11.1]} 13... Bxb4 {[%clk 0:02:06.7]}
14. Qb1 {[%clk 0:02:05.2]} 14... Be7 {[%clk 0:01:35.4]} 15. Bxh7+ {[%clk
0:01:56.7]} 15... Kh8 {[%clk 0:01:35.6]} 16. Be4 {[%clk 0:01:56.3]} 16... Qc4+
{[%clk 0:01:09.3]} 17. Qd3 {[%clk 0:01:51.5]} 17... Qxd3+ {[%clk 0:00:39.3]} 18.
Kxd3 {[%clk 0:01:50.3]} 18... Ba6+ {[%clk 0:00:39.3]} 19. Kc2 {[%clk 0:01:42]}
19... Nc6 {[%clk 0:00:31.5]} 20. Bxc6 {[%clk 0:01:36.3]} 20... Rac8 {[%clk
0:00:25]} 21. Rxa6 {[%clk 0:01:25.8]} 21... Rxc6+ {[%clk 0:00:24.8]} 22. Kd3
{[%clk 0:01:25.4]} 22... Rfc8 {[%clk 0:00:24]} 23. Rxa7 {[%clk 0:01:14.2]} 23...
Rc3+ {[%clk 0:00:23.9]} 24. Ke2 {[%clk 0:01:14.3]} 24... Rc2+ {[%clk 0:00:23.5]}
25. Nd2 {[%clk 0:01:14.6]} 25... Bb4 {[%clk 0:00:23.2]} 26. Rd1 {[%clk
0:01:14.9]} 26... Rb2 {[%clk 0:00:13.9]} 27. e4 {[%clk 0:01:05.1]} 27... f5
{[%clk 0:00:12]} 28. f3 {[%clk 0:01:01.1]} 28... fxe4 {[%clk 0:00:10.7]} 29.
fxe4 {[%clk 0:01:02]} 29... Rf8 {[%clk 0:00:10.7]} 30. Be5 {[%clk 0:00:59.9]}
30... Bxd2 {[%clk 0:00:05.8]} 31. Rxd2 {[%clk 0:00:55.3]} 31... Rxd2+ {[%clk
0:00:05.4]} 32. Kxd2 {[%clk 0:00:56.2]} 32... Rf2+ {[%clk 0:00:05.3]} 33. Ke3
{[%clk 0:00:54.6]} 33... Rxg2 {[%clk 0:00:05]} 34. d5 {[%clk 0:00:54.8]} 34...
exd5 {[%clk 0:00:04.1]} 35. exd5 {[%clk 0:00:55.7]} 35... Kg8 {[%clk 0:00:03.8]}
36. d6 {[%clk 0:00:55.2]} 36... Kf8 {[%clk 0:00:03.6]} 37. Rxg7 {[%clk
0:00:49.5]} 37... Rxg7 {[%clk 0:00:02.3]} 38. Bxg7+ {[%clk 0:00:50.4]} 38... Ke8
{[%clk 0:00:01.9]} 39. Kd4 {[%clk 0:00:48.5]} 39... Kd7 {[%clk 0:00:02.2]} 40.
Kd5 {[%clk 0:00:49.4]} 40... b5 {[%clk 0:00:02.6]} 41. Bb2 {[%clk 0:00:49.3]}
41... b4 {[%clk 0:00:03]} 42. h4 {[%clk 0:00:50.2]} 42... b3 {[%clk 0:00:03.4]}
43. h5 {[%clk 0:00:51.1]} 43... Kd8 {[%clk 0:00:03.4]} 44. h6 {[%clk 0:00:52]}
44... Ke8 {[%clk 0:00:02.5]} 45. h7 {[%clk 0:00:52.9]} 45... Kd7 {[%clk
0:00:02.6]} 46. Kc5 {[%clk 0:00:50.3]} 46... Ke6 {[%clk 0:00:01.3]} 47. h8=Q
{[%clk 0:00:47.4]} 47... Kd7 {[%clk 0:00:01.4]} 48. Qg7+ {[%clk 0:00:43.5]}
48... Ke6 {[%clk 0:00:01.3]} 49. Qf6+ {[%clk 0:00:41.9]} 49... Kd7 {[%clk
0:00:01.6]} 50. Qe7+ {[%clk 0:00:41.9]} 50... Kc8 {[%clk 0:00:01.7]} 51. Qc7#
{[%clk 0:00:42.1]} 1-0

[Event "*** SCC Grand Prix: Titled Tuesday Blitz"]
[Site "Chess.com"]
[Date "2020.06.02"]
[Round "6"]
[White "ketster"]
[Black "c63_amg"]
[Result "0-1"]
[WhiteElo "2421"]
[BlackElo "2692"]
[TimeControl "180+1"]
[EndTime "11:09:35 PDT"]
[Termination "c63_amg won by checkmate"]

1. d4 {[%clk 0:03:00.9]} 1... Nf6 {[%clk 0:02:59.5]} 2. c4 {[%clk 0:03:00.9]}
2... e6 {[%clk 0:03:00.4]} 3. Nf3 {[%clk 0:03:00.3]} 3... Bb4+ {[%clk
0:03:00.9]} 4. Bd2 {[%clk 0:02:59.2]} 4... Qe7 {[%clk 0:03:00.9]} 5. g3 {[%clk
0:02:59.3]} 5... Bxd2+ {[%clk 0:03:00.8]} 6. Nbxd2 {[%clk 0:02:59]} 6... O-O
{[%clk 0:02:54.9]} 7. Bg2 {[%clk 0:02:57]} 7... d6 {[%clk 0:02:55.8]} 8. O-O
{[%clk 0:02:54.5]} 8... e5 {[%clk 0:02:56.7]} 9. e4 {[%clk 0:02:53.5]} 9... a5
{[%clk 0:02:55.1]} 10. Re1 {[%clk 0:02:51.9]} 10... Na6 {[%clk 0:02:54.6]} 11.
Qc2 {[%clk 0:02:49.9]} 11... Bg4 {[%clk 0:02:54.1]} 12. Qc3 {[%clk 0:02:43.6]}
12... Bxf3 {[%clk 0:02:43]} 13. Nxf3 {[%clk 0:02:41.3]} 13... exd4 {[%clk
0:02:26.4]} 14. Nxd4 {[%clk 0:02:40.6]} 14... Nc5 {[%clk 0:02:21.6]} 15. e5
{[%clk 0:02:15.7]} 15... dxe5 {[%clk 0:02:06.7]} 16. Nf5 {[%clk 0:02:14.8]}
16... Qd7 {[%clk 0:01:55.9]} 17. Rxe5 {[%clk 0:02:04.1]} 17... Nd3 {[%clk
0:01:27.4]} 18. Ne7+ {[%clk 0:02:02.6]} 18... Kh8 {[%clk 0:01:26.3]} 19. Re3
{[%clk 0:02:02]} 19... Nxf2 {[%clk 0:00:57.9]} 20. Nd5 {[%clk 0:01:05.9]} 20...
Nxd5 {[%clk 0:00:48.8]} 21. cxd5 {[%clk 0:01:02.5]} 21... Ng4 {[%clk 0:00:49]}
22. Ree1 {[%clk 0:00:41.5]} 22... Qd6 {[%clk 0:00:43]} 23. h3 {[%clk 0:00:37]}
23... Nf6 {[%clk 0:00:33.9]} 24. Red1 {[%clk 0:00:33.5]} 24... Rfe8 {[%clk
0:00:32]} 25. Rac1 {[%clk 0:00:33]} 25... Re7 {[%clk 0:00:30.8]} 26. Kh2 {[%clk
0:00:32.1]} 26... h5 {[%clk 0:00:29.6]} 27. Kh1 {[%clk 0:00:28]} 27... b6 {[%clk
0:00:27.9]} 28. Rd4 {[%clk 0:00:25.2]} 28... Rae8 {[%clk 0:00:26.7]} 29. Rd3
{[%clk 0:00:18.6]} 29... Kg8 {[%clk 0:00:19.9]} 30. Qc4 {[%clk 0:00:18.4]} 30...
Nh7 {[%clk 0:00:09.7]} 31. Rdc3 {[%clk 0:00:13.8]} 31... Nf6 {[%clk 0:00:08.1]}
32. Rd3 {[%clk 0:00:11.7]} 32... Re1+ {[%clk 0:00:07.9]} 33. Rxe1 {[%clk
0:00:09.6]} 33... Rxe1+ {[%clk 0:00:08.8]} 34. Kh2 {[%clk 0:00:09.9]} 34... Re7
{[%clk 0:00:09.3]} 35. Rc3 {[%clk 0:00:08.7]} 35... Qe5 {[%clk 0:00:08.8]} 36.
a3 {[%clk 0:00:06.9]} 36... Rd7 {[%clk 0:00:08.8]} 37. Qc6 {[%clk 0:00:05]}
37... h4 {[%clk 0:00:07.7]} 38. Qa8+ {[%clk 0:00:03.4]} 38... Kh7 {[%clk
0:00:07.5]} 39. Qc6 {[%clk 0:00:03.6]} 39... hxg3+ {[%clk 0:00:07.7]} 40. Kh1
{[%clk 0:00:02.6]} 40... Qe1+ {[%clk 0:00:07]} 41. Bf1 {[%clk 0:00:02.2]} 41...
Qxf1# {[%clk 0:00:05.5]} 0-1

[Event "*** SCC Grand Prix: Titled Tuesday Blitz"]
[Site "Chess.com"]
[Date "2020.06.02"]
[Round "6"]
[White "Vlad_Lukiianchuk"]
[Black "Durarbayli"]
[Result "1-0"]
[WhiteElo "2587"]
[BlackElo "2761"]
[TimeControl "180+1"]
[EndTime "11:09:36 PDT"]
[Termination "Vlad_Lukiianchuk won by checkmate"]

1. d4 {[%clk 0:03:00.9]} 1... Nf6 {[%clk 0:02:59.6]} 2. c4 {[%clk 0:03:00.8]}
2... e6 {[%clk 0:02:57.3]} 3. Nf3 {[%clk 0:03:00.5]} 3... b6 {[%clk 0:02:57.6]}
4. a3 {[%clk 0:02:58]} 4... Ba6 {[%clk 0:02:57.7]} 5. Qc2 {[%clk 0:02:52]} 5...
Bb7 {[%clk 0:02:57.2]} 6. Nc3 {[%clk 0:02:51]} 6... c5 {[%clk 0:02:57.1]} 7.
dxc5 {[%clk 0:02:39.5]} 7... bxc5 {[%clk 0:02:56.8]} 8. Bg5 {[%clk 0:02:35.4]}
8... Be7 {[%clk 0:02:16.9]} 9. Rd1 {[%clk 0:02:33.2]} 9... O-O {[%clk
0:02:11.9]} 10. e4 {[%clk 0:02:31.3]} 10... h6 {[%clk 0:02:07.6]} 11. Bh4 {[%clk
0:02:30]} 11... Nc6 {[%clk 0:01:57.1]} 12. e5 {[%clk 0:02:11.1]} 12... Ng4
{[%clk 0:01:40.6]} 13. Bg3 {[%clk 0:02:10.2]} 13... f6 {[%clk 0:01:34.4]} 14.
exf6 {[%clk 0:01:35.9]} 14... Nxf6 {[%clk 0:01:33.8]} 15. Be2 {[%clk 0:01:25.7]}
15... Nd4 {[%clk 0:01:32.2]} 16. Nxd4 {[%clk 0:01:23.5]} 16... cxd4 {[%clk
0:01:32.4]} 17. Rxd4 {[%clk 0:01:23.5]} 17... Bc5 {[%clk 0:01:24.3]} 18. Rd2
{[%clk 0:01:14.5]} 18... Bxg2 {[%clk 0:01:22.9]} 19. Rg1 {[%clk 0:01:14.2]}
19... Bh3 {[%clk 0:01:21.4]} 20. b4 {[%clk 0:01:11.2]} 20... Be7 {[%clk
0:01:10.3]} 21. Be5 {[%clk 0:01:00.6]} 21... Bf5 {[%clk 0:01:09.3]} 22. Bd3
{[%clk 0:00:58.6]} 22... Qe8 {[%clk 0:00:49]} 23. Bxf5 {[%clk 0:00:47.9]} 23...
exf5 {[%clk 0:00:48.8]} 24. Qxf5 {[%clk 0:00:42.3]} 24... a5 {[%clk 0:00:49]}
25. Re2 {[%clk 0:00:30.3]} 25... Qf7 {[%clk 0:00:27.2]} 26. b5 {[%clk
0:00:13.3]} 26... Rae8 {[%clk 0:00:19.8]} 27. b6 {[%clk 0:00:09.6]} 27... Bxa3
{[%clk 0:00:13.2]} 28. b7 {[%clk 0:00:08.2]} 28... Bb4 {[%clk 0:00:07.9]} 29.
Bxf6 {[%clk 0:00:07.5]} 29... Bxc3+ {[%clk 0:00:04]} 30. Bxc3 {[%clk 0:00:04]}
30... Rxe2+ {[%clk 0:00:04.2]} 31. Kxe2 {[%clk 0:00:03.7]} 31... Qxc4+ {[%clk
0:00:03.3]} 32. Qd3 {[%clk 0:00:03.8]} 32... Rxf2+ {[%clk 0:00:02]} 33. Kxf2
{[%clk 0:00:04.2]} 33... Qxd3 {[%clk 0:00:02.4]} 34. Rxg7+ {[%clk 0:00:02.6]}
34... Kf8 {[%clk 0:00:02.5]} 35. b8=Q# {[%clk 0:00:03.1]} 1-0

[Event "*** SCC Grand Prix: Titled Tuesday Blitz"]
[Site "Chess.com"]
[Date "2020.06.02"]
[Round "6"]
[White "manitodeplomo"]
[Black "TheNextLevelFan"]
[Result "1-0"]
[WhiteElo "2609"]
[BlackElo "2436"]
[TimeControl "180+1"]
[EndTime "11:09:36 PDT"]
[Termination "manitodeplomo won by resignation"]

1. c4 {[%clk 0:03:00.9]} 1... e5 {[%clk 0:02:59]} 2. g3 {[%clk 0:03:00.5]} 2...
Nf6 {[%clk 0:02:58.6]} 3. Bg2 {[%clk 0:03:00.8]} 3... d5 {[%clk 0:02:58.8]} 4.
cxd5 {[%clk 0:03:00.6]} 4... Nxd5 {[%clk 0:02:59.1]} 5. Nc3 {[%clk 0:03:00.8]}
5... Ne7 {[%clk 0:02:59.4]} 6. Nf3 {[%clk 0:03:00.2]} 6... Nbc6 {[%clk
0:02:59.8]} 7. O-O {[%clk 0:03:01.1]} 7... g6 {[%clk 0:02:59.5]} 8. b4 {[%clk
0:03:00]} 8... a6 {[%clk 0:02:57.7]} 9. a4 {[%clk 0:02:56.1]} 9... Bg7 {[%clk
0:02:57.5]} 10. Rb1 {[%clk 0:02:54.6]} 10... O-O {[%clk 0:02:57]} 11. b5 {[%clk
0:02:54.9]} 11... axb5 {[%clk 0:02:57.4]} 12. axb5 {[%clk 0:02:55.8]} 12... Nd4
{[%clk 0:02:58]} 13. d3 {[%clk 0:02:56.1]} 13... h6 {[%clk 0:02:48.6]} 14. Nd2
{[%clk 0:02:55]} 14... Ra7 {[%clk 0:02:45.7]} 15. Nc4 {[%clk 0:02:46.1]} 15...
Be6 {[%clk 0:02:41.2]} 16. e3 {[%clk 0:02:36.6]} 16... Ndf5 {[%clk 0:02:40.5]}
17. b6 {[%clk 0:02:28.7]} 17... cxb6 {[%clk 0:02:40.3]} 18. Nxb6 {[%clk
0:02:29.6]} 18... Nc6 {[%clk 0:02:30.4]} 19. Ne4 {[%clk 0:02:07.4]} 19... Qe7
{[%clk 0:02:13.7]} 20. Qc2 {[%clk 0:01:57.6]} 20... Ra2 {[%clk 0:01:57.8]} 21.
Qc5 {[%clk 0:01:56.5]} 21... Qd8 {[%clk 0:01:49]} 22. Rd1 {[%clk 0:01:50.6]}
22... Re8 {[%clk 0:01:33.2]} 23. Qc3 {[%clk 0:01:23.3]} 23... Ra6 {[%clk
0:01:19.4]} 24. Nc4 {[%clk 0:01:12.1]} 24... b6 {[%clk 0:00:46]} 25. Bb2 {[%clk
0:00:52.2]} 25... b5 {[%clk 0:00:41.9]} 26. Nc5 {[%clk 0:00:43.5]} 26... b4
{[%clk 0:00:38.4]} 27. Qc2 {[%clk 0:00:37.9]} 27... b3 {[%clk 0:00:26.2]} 28.
Qxb3 {[%clk 0:00:36.1]} 28... Na5 {[%clk 0:00:25.9]} 29. Qc2 {[%clk 0:00:30.5]}
29... Ra7 {[%clk 0:00:19.6]} 30. Nxe6 {[%clk 0:00:12.9]} 30... Rxe6 {[%clk
0:00:19.2]} 31. Bc3 {[%clk 0:00:12.8]} 31... Nc6 {[%clk 0:00:17.4]} 32. Rb6
{[%clk 0:00:10.3]} 32... Qc7 {[%clk 0:00:15.3]} 33. Qb2 {[%clk 0:00:07.9]} 33...
Nfe7 {[%clk 0:00:14.2]} 34. Rb1 {[%clk 0:00:06.6]} 34... Kh7 {[%clk 0:00:13.5]}
35. Qb5 {[%clk 0:00:06.4]} 35... Ra2 {[%clk 0:00:11.4]} 36. Qb3 {[%clk 0:00:03]}
36... Ra7 {[%clk 0:00:10.6]} 37. Bb4 {[%clk 0:00:02]} 37... Nxb4 {[%clk
0:00:10.7]} 38. Qxb4 {[%clk 0:00:02.9]} 38... Nc6 {[%clk 0:00:10.9]} 39. Qc5
{[%clk 0:00:03.2]} 39... Nd4 {[%clk 0:00:10]} 40. Qxc7 {[%clk 0:00:03.3]} 40...
Ne2+ {[%clk 0:00:09.7]} 41. Kf1 {[%clk 0:00:03.3]} 41... Nxg3+ {[%clk
0:00:09.9]} 42. hxg3 {[%clk 0:00:04.2]} 42... Rxc7 {[%clk 0:00:10]} 43. Rxe6
{[%clk 0:00:04.3]} 43... fxe6 {[%clk 0:00:10.4]} 44. Ke2 {[%clk 0:00:04.7]}
44... g5 {[%clk 0:00:10.3]} 45. Be4+ {[%clk 0:00:04.8]} 45... Kg8 {[%clk
0:00:10.2]} 46. Rb7 {[%clk 0:00:05.3]} 46... Kf7 {[%clk 0:00:11.1]} 47. Rxc7+
{[%clk 0:00:04.7]} 1-0

[Event "*** SCC Grand Prix: Titled Tuesday Blitz"]
[Site "Chess.com"]
[Date "2020.06.02"]
[Round "6"]
[White "Eloist"]
[Black "witcher8"]
[Result "1-0"]
[WhiteElo "2237"]
[BlackElo "2397"]
[TimeControl "180+1"]
[EndTime "11:09:36 PDT"]
[Termination "Eloist won by resignation"]

1. e4 {[%clk 0:03:00.9]} 1... c6 {[%clk 0:03:00.1]} 2. Nf3 {[%clk 0:03:00.1]}
2... d5 {[%clk 0:03:01]} 3. Nc3 {[%clk 0:03:00.2]} 3... Bg4 {[%clk 0:03:00.4]}
4. d4 {[%clk 0:02:59.6]} 4... e6 {[%clk 0:02:59.3]} 5. h3 {[%clk 0:02:59.2]}
5... Bh5 {[%clk 0:02:57.9]} 6. Bd3 {[%clk 0:02:58]} 6... Nf6 {[%clk 0:02:55.7]}
7. e5 {[%clk 0:02:48.9]} 7... Nfd7 {[%clk 0:02:55.7]} 8. g4 {[%clk 0:02:47.4]}
8... Bg6 {[%clk 0:02:55.4]} 9. Bxg6 {[%clk 0:02:47.2]} 9... hxg6 {[%clk
0:02:56.3]} 10. Ne2 {[%clk 0:02:45.5]} 10... c5 {[%clk 0:02:54.5]} 11. c3 {[%clk
0:02:45.4]} 11... Nc6 {[%clk 0:02:54.7]} 12. Kf1 {[%clk 0:02:44.4]} 12... Be7
{[%clk 0:02:42.6]} 13. Kg2 {[%clk 0:02:42.7]} 13... b5 {[%clk 0:02:40.4]} 14.
Nf4 {[%clk 0:02:30.9]} 14... b4 {[%clk 0:02:36]} 15. h4 {[%clk 0:02:16.5]} 15...
Qa5 {[%clk 0:02:12.5]} 16. c4 {[%clk 0:02:03.8]} 16... dxc4 {[%clk 0:02:08.2]}
17. d5 {[%clk 0:02:03.3]} 17... Ncxe5 {[%clk 0:01:38.7]} 18. dxe6 {[%clk
0:02:01.8]} 18... fxe6 {[%clk 0:01:38.8]} 19. Nxe5 {[%clk 0:01:33.1]} 19... Nxe5
{[%clk 0:01:38.3]} 20. Qe2 {[%clk 0:01:33.1]} 20... Qc7 {[%clk 0:01:31.5]} 21.
Nxe6 {[%clk 0:01:30.1]} 21... Qc6+ {[%clk 0:01:31.7]} 22. f3 {[%clk 0:01:16.1]}
22... Qxe6 {[%clk 0:01:28.9]} 23. Re1 {[%clk 0:00:59.3]} 23... Rxh4 {[%clk
0:00:32.3]} 24. Qxe5 {[%clk 0:00:45.3]} 24... Qxe5 {[%clk 0:00:31.6]} 25. Rxe5
{[%clk 0:00:45.5]} 25... Kf7 {[%clk 0:00:31.9]} 26. Rxe7+ {[%clk 0:00:44.5]}
26... Kxe7 {[%clk 0:00:27.6]} 27. Bg5+ {[%clk 0:00:44.2]} 27... Kd6 {[%clk
0:00:27.5]} 28. Bxh4 {[%clk 0:00:45.1]} 28... Re8 {[%clk 0:00:25.5]} 29. Rd1+
{[%clk 0:00:44.4]} 29... Kc6 {[%clk 0:00:25.9]} 30. Kf2 {[%clk 0:00:43.2]} 30...
a5 {[%clk 0:00:25.5]} 31. Bg3 {[%clk 0:00:42.8]} 31... Re6 {[%clk 0:00:24.3]}
32. Re1 {[%clk 0:00:37.8]} 32... Rf6 {[%clk 0:00:18.1]} 33. Re7 {[%clk
0:00:34.3]} 33... c3 {[%clk 0:00:15.8]} 34. bxc3 {[%clk 0:00:33.8]} 34... bxc3
{[%clk 0:00:16.7]} 35. Re3 {[%clk 0:00:33]} 35... Kb5 {[%clk 0:00:13.3]} 36.
Rxc3 {[%clk 0:00:32.5]} 36... Kb4 {[%clk 0:00:14]} 37. Rc2 {[%clk 0:00:28.6]}
37... c4 {[%clk 0:00:14.2]} 38. Be5 {[%clk 0:00:25.4]} 38... Re6 {[%clk
0:00:13.7]} 39. Bc3+ {[%clk 0:00:21.8]} 39... Ka4 {[%clk 0:00:11.6]} 40. Bxg7
{[%clk 0:00:20.5]} 40... Rd6 {[%clk 0:00:11.8]} 41. f4 {[%clk 0:00:18.8]} 41...
Kb5 {[%clk 0:00:09.6]} 42. f5 {[%clk 0:00:18.7]} 42... gxf5 {[%clk 0:00:09.9]}
43. gxf5 {[%clk 0:00:19.6]} 43... Rd4 {[%clk 0:00:07.2]} 44. f6 {[%clk
0:00:19.3]} 44... Rd5 {[%clk 0:00:05.4]} 45. Ke3 {[%clk 0:00:18.6]} 45... Rf5
{[%clk 0:00:06]} 46. Rf2 {[%clk 0:00:17.2]} 46... Rxf2 {[%clk 0:00:05.9]} 47.
Kxf2 {[%clk 0:00:16.8]} 47... c3 {[%clk 0:00:06.8]} 48. f7 {[%clk 0:00:16.5]}
48... c2 {[%clk 0:00:07.7]} 49. Bb2 {[%clk 0:00:16]} 1-0

[Event "*** SCC Grand Prix: Titled Tuesday Blitz"]
[Site "Chess.com"]
[Date "2020.06.02"]
[Round "6"]
[White "Lovinski"]
[Black "Funkmaus"]
[Result "1/2-1/2"]
[WhiteElo "2358"]
[BlackElo "2195"]
[TimeControl "180+1"]
[EndTime "11:09:36 PDT"]
[Termination "Game drawn by repetition"]

1. Nf3 {[%clk 0:03:00.9]} 1... c6 {[%clk 0:03:00.6]} 2. g3 {[%clk 0:03:00.9]}
2... d5 {[%clk 0:03:01.2]} 3. Bg2 {[%clk 0:03:01.1]} 3... Nf6 {[%clk 0:03:01.9]}
4. c4 {[%clk 0:03:01.2]} 4... Bf5 {[%clk 0:03:02.6]} 5. cxd5 {[%clk 0:03:01.1]}
5... cxd5 {[%clk 0:03:03.5]} 6. Qb3 {[%clk 0:03:01.3]} 6... Qc8 {[%clk
0:02:55.8]} 7. Nc3 {[%clk 0:02:59.8]} 7... e6 {[%clk 0:02:54.7]} 8. O-O {[%clk
0:02:54]} 8... Nc6 {[%clk 0:02:55]} 9. d3 {[%clk 0:02:54]} 9... Be7 {[%clk
0:02:49.3]} 10. Be3 {[%clk 0:02:44.6]} 10... O-O {[%clk 0:02:42.4]} 11. Rac1
{[%clk 0:02:40.9]} 11... Qd7 {[%clk 0:02:35]} 12. Nd4 {[%clk 0:02:38.5]} 12...
Bg6 {[%clk 0:02:28.1]} 13. Rfd1 {[%clk 0:02:18.8]} 13... Rac8 {[%clk 0:02:09.9]}
14. Nxc6 {[%clk 0:02:08.8]} 14... bxc6 {[%clk 0:02:10.8]} 15. d4 {[%clk
0:02:09]} 15... Rb8 {[%clk 0:01:58.5]} 16. Qa4 {[%clk 0:02:08.8]} 16... Rxb2
{[%clk 0:01:56.6]} 17. Qa6 {[%clk 0:01:59.8]} 17... Rb6 {[%clk 0:01:43.4]} 18.
Qa4 {[%clk 0:01:56]} 18... Rfb8 {[%clk 0:01:37.7]} 19. Bf4 {[%clk 0:01:51.2]}
19... R8b7 {[%clk 0:01:31.7]} 20. f3 {[%clk 0:01:19.5]} 20... Rb4 {[%clk
0:01:28.6]} 21. Qa5 {[%clk 0:01:19.4]} 21... Rc4 {[%clk 0:01:21.2]} 22. Na4
{[%clk 0:01:07]} 22... Rcb4 {[%clk 0:00:48.5]} 23. Nc5 {[%clk 0:00:56]} 23...
Bxc5 {[%clk 0:00:44.4]} 24. Rxc5 {[%clk 0:00:56.9]} 24... Nh5 {[%clk 0:00:39.4]}
25. Be3 {[%clk 0:00:40.3]} 25... Nf6 {[%clk 0:00:38.3]} 26. Rdc1 {[%clk
0:00:37.3]} 26... R4b6 {[%clk 0:00:37.4]} 27. Bf4 {[%clk 0:00:32]} 27... h6
{[%clk 0:00:37.1]} 28. g4 {[%clk 0:00:31]} 28... Ne8 {[%clk 0:00:31.5]} 29. Qc3
{[%clk 0:00:31]} 29... Nd6 {[%clk 0:00:22.5]} 30. Bxd6 {[%clk 0:00:21.3]} 30...
Qxd6 {[%clk 0:00:23.4]} 31. Rxc6 {[%clk 0:00:22.2]} 31... Qf4 {[%clk 0:00:17.1]}
32. Rxb6 {[%clk 0:00:18.2]} 32... Rxb6 {[%clk 0:00:18]} 33. e3 {[%clk
0:00:18.4]} 33... Qg5 {[%clk 0:00:17.3]} 34. Kf2 {[%clk 0:00:14.8]} 34... Qh4+
{[%clk 0:00:16.9]} 35. Kg1 {[%clk 0:00:15.2]} 35... h5 {[%clk 0:00:17.4]} 36.
Qe1 {[%clk 0:00:13.5]} 36... Qg5 {[%clk 0:00:17]} 37. gxh5 {[%clk 0:00:13.1]}
37... Bxh5 {[%clk 0:00:17.8]} 38. f4 {[%clk 0:00:13.1]} 38... Qg6 {[%clk
0:00:17.4]} 39. Kh1 {[%clk 0:00:12.1]} 39... Bg4 {[%clk 0:00:17.3]} 40. Qf2
{[%clk 0:00:11.7]} 40... Bf5 {[%clk 0:00:17.4]} 41. Rg1 {[%clk 0:00:11.6]} 41...
Qh7 {[%clk 0:00:16.5]} 42. Bf3 {[%clk 0:00:11]} 42... Rb1 {[%clk 0:00:16.2]} 43.
Qg3 {[%clk 0:00:11]} 43... Rxg1+ {[%clk 0:00:15]} 44. Kxg1 {[%clk 0:00:11.9]}
44... Be4 {[%clk 0:00:15.6]} 45. Bxe4 {[%clk 0:00:11.8]} 45... Qxe4 {[%clk
0:00:16.5]} 46. Kf2 {[%clk 0:00:11.3]} 46... Qc2+ {[%clk 0:00:16.5]} 47. Kf3
{[%clk 0:00:10.6]} 47... Qxa2 {[%clk 0:00:17.4]} 48. Qg5 {[%clk 0:00:10.7]}
48... Qc2 {[%clk 0:00:17.1]} 49. Qd8+ {[%clk 0:00:10.6]} 49... Kh7 {[%clk
0:00:17.7]} 50. Qh4+ {[%clk 0:00:11.5]} 50... Kg8 {[%clk 0:00:17.2]} 51. Qd8+
{[%clk 0:00:11.7]} 51... Kh7 {[%clk 0:00:17.7]} 52. Qh4+ {[%clk 0:00:12.1]}
52... Kg8 {[%clk 0:00:15.9]} 53. Qd8+ {[%clk 0:00:12.1]} 1/2-1/2

[Event "*** SCC Grand Prix: Titled Tuesday Blitz"]
[Site "Chess.com"]
[Date "2020.06.02"]
[Round "6"]
[White "zmeeed67"]
[Black "chargemax23"]
[Result "1-0"]
[WhiteElo "2457"]
[BlackElo "2584"]
[TimeControl "180+1"]
[EndTime "11:09:37 PDT"]
[Termination "zmeeed67 won on time"]

1. d4 {[%clk 0:03:00.9]} 1... Nf6 {[%clk 0:02:57.7]} 2. c4 {[%clk 0:03:01.1]}
2... d6 {[%clk 0:02:53.2]} 3. Nf3 {[%clk 0:03:01]} 3... c6 {[%clk 0:02:48.9]} 4.
Nc3 {[%clk 0:03:00.1]} 4... Bf5 {[%clk 0:02:48.3]} 5. Nh4 {[%clk 0:02:35.2]}
5... Bg6 {[%clk 0:02:41.9]} 6. Nxg6 {[%clk 0:02:31.8]} 6... hxg6 {[%clk
0:02:41.4]} 7. g3 {[%clk 0:02:15.6]} 7... Nbd7 {[%clk 0:02:40.7]} 8. Bg2 {[%clk
0:02:15.7]} 8... e5 {[%clk 0:02:40.5]} 9. O-O {[%clk 0:02:13.3]} 9... Be7 {[%clk
0:02:26.7]} 10. Rb1 {[%clk 0:02:12.9]} 10... O-O {[%clk 0:02:23.4]} 11. b4
{[%clk 0:02:11.9]} 11... Qc7 {[%clk 0:02:21.8]} 12. Bg5 {[%clk 0:01:49.9]} 12...
Rfe8 {[%clk 0:02:17.1]} 13. Qd3 {[%clk 0:01:46.8]} 13... Bf8 {[%clk 0:02:16.3]}
14. h3 {[%clk 0:01:17.2]} 14... Nh7 {[%clk 0:01:46.5]} 15. Bc1 {[%clk
0:00:57.1]} 15... f5 {[%clk 0:01:45.9]} 16. e4 {[%clk 0:00:52.8]} 16... exd4
{[%clk 0:01:25.9]} 17. Qxd4 {[%clk 0:00:52.4]} 17... Nhf6 {[%clk 0:01:25.4]} 18.
Bf4 {[%clk 0:00:27.6]} 18... Nh5 {[%clk 0:01:22.2]} 19. Bg5 {[%clk 0:00:21.7]}
19... a5 {[%clk 0:01:11.4]} 20. b5 {[%clk 0:00:18.4]} 20... a4 {[%clk 0:01:04]}
21. bxc6 {[%clk 0:00:15.5]} 21... bxc6 {[%clk 0:01:03.8]} 22. exf5 {[%clk
0:00:15.7]} 22... gxf5 {[%clk 0:01:03.3]} 23. Rfd1 {[%clk 0:00:12.3]} 23... Ra5
{[%clk 0:00:59]} 24. Be3 {[%clk 0:00:07.1]} 24... Rae5 {[%clk 0:00:53.3]} 25.
Qd2 {[%clk 0:00:06]} 25... Rxe3 {[%clk 0:00:39.9]} 26. fxe3 {[%clk 0:00:05.5]}
26... Nxg3 {[%clk 0:00:40.1]} 27. Qf2 {[%clk 0:00:05.7]} 27... d5 {[%clk
0:00:34.3]} 28. cxd5 {[%clk 0:00:05.3]} 28... Rxe3 {[%clk 0:00:32.1]} 29. Qxe3
{[%clk 0:00:04.4]} 29... Bc5 {[%clk 0:00:31.6]} 30. Rd4 {[%clk 0:00:03]} 30...
Qa7 {[%clk 0:00:28]} 31. Rbd1 {[%clk 0:00:02.6]} 31... f4 {[%clk 0:00:23.1]} 32.
Qe6+ {[%clk 0:00:02.6]} 32... Kh8 {[%clk 0:00:20.6]} 33. Kh2 {[%clk 0:00:03.5]}
33... Bxd4 {[%clk 0:00:20]} 34. Ne4 {[%clk 0:00:03.6]} 34... Nf6 {[%clk
0:00:18.3]} 35. Qc8+ {[%clk 0:00:02.9]} 35... Kh7 {[%clk 0:00:17.7]} 36. Nxg3
{[%clk 0:00:03.1]} 36... fxg3+ {[%clk 0:00:14.6]} 37. Kxg3 {[%clk 0:00:04]}
37... Be5+ {[%clk 0:00:14.7]} 38. Kf3 {[%clk 0:00:02.9]} 38... Bc3 {[%clk
0:00:01.7]} 39. Qf5+ {[%clk 0:00:03.3]} 39... Kg8 {[%clk 0:00:01.4]} 40. dxc6
{[%clk 0:00:03.4]} 1-0